bitfinex-derivatives/quotes_BTCF0:USTF0_20250129
["timestamp","ask_amount","ask_price","bid_price","bid_amount"]
[1738144797878,0.19441756,102340.0,102330.0,0.32251437]
[1738144798471,0.19441756,102340.0,102330.0,0.2822489]
[1738144799280,0.19441756,102340.0,102330.0,0.32251437]
[1738144799476,0.35912081,102340.0,102330.0,0.27445491]
[1738144799979,0.35912081,102340.0,102330.0,0.23418944]
[1738144800381,0.31106135,102340.0,102330.0,0.32251437]
[1738144800587,0.31106135,102340.0,102330.0,0.2822489]
[1738144801280,0.11673349,102340.0,102330.0,0.2822489]
[1738144801478,0.11673349,102340.0,102330.0,0.85078451]
[1738144802785,0.11673349,102340.0,102330.0,0.89884397]
[1738144803080,0.1266383,102350.0,102340.0,0.195514]
[1738144803281,0.1266383,102350.0,102340.0,0.7054299]
[1738144803578,0.1266383,102350.0,102340.0,0.86436029]
[1738144803979,0.1266383,102350.0,102340.0,0.96207856]
[1738144804282,0.1266383,102350.0,102340.0,0.95428457]
[1738144804483,0.1346383,102350.0,102340.0,0.95428457]
[1738144804677,0.1346383,102350.0,102340.0,1.00234403]
[1738144804887,0.12478992,102350.0,102340.0,0.99387856]
[1738144805085,0.12878992,102350.0,102340.0,0.99387856]
[1738144805475,0.01214613,102350.0,102340.0,0.99387856]
[1738144809981,0.00014613,102350.0,102340.0,0.99487856]
[1738144810288,0.00114613,102350.0,102340.0,0.99987856]
[1738144810984,0.706247,102360.0,102340.0,0.99987856]
[1738144811190,0.706247,102360.0,102350.0,0.04805946]
[1738144811580,0.706247,102360.0,102350.0,0.34516255]
[1738144811781,0.58960321,102360.0,102350.0,0.34516255]
[1738144812784,0.58960321,102360.0,102350.0,0.29710309]
[1738144812981,0.69996267,102360.0,102340.0,0.62485213]
[1738144813180,0.07975946,102350.0,102340.0,0.71052291]
[1738144813381,0.0317,102350.0,102340.0,0.80822209]
[1738144813783,0.0317,102350.0,102340.0,0.80322209]
[1738144814591,0.0317,102350.0,102340.0,0.80522209]
[1738144815376,0.0317,102350.0,102340.0,0.81990209]
[1738144815590,0.0317,102350.0,102340.0,0.80522209]
[1738144815991,0.0317,102350.0,102340.0,0.81990209]
[1738144816290,0.0317,102350.0,102340.0,0.80522209]
[1738144816490,0.0317,102350.0,102340.0,0.81990209]
[1738144816690,0.0317,102350.0,102340.0,0.80522209]
[1738144816886,0.0317,102350.0,102340.0,0.81990209]
[1738144817295,0.0317,102350.0,102340.0,0.80522209]
[1738144817493,0.0317,102350.0,102340.0,0.81990209]
[1738144817694,0.0317,102350.0,102340.0,0.80522209]
[1738144817888,0.0317,102350.0,102340.0,0.81990209]
[1738144818091,0.0317,102350.0,102340.0,0.86796155]
[1738144818288,0.0317,102350.0,102340.0,0.85328155]
[1738144819289,0.60384375,102360.0,102350.0,0.195514]
[1738144819490,0.60384375,102360.0,102350.0,0.24357346]
[1738144819688,0.65818754,102360.0,102350.0,0.24357346]
[1738144820391,0.65818754,102360.0,102350.0,0.28218364]
[1738144820593,0.66018754,102360.0,102350.0,0.28218364]
[1738144821098,0.708247,102360.0,102350.0,0.03861018]
[1738144821300,0.741247,102360.0,102350.0,0.03861018]
[1738144821500,0.774247,102360.0,102340.0,0.66692959]
[1738144821800,0.226314,102350.0,102340.0,0.81374528]
[1738144822497,0.226314,102350.0,102340.0,0.75134528]
[1738144822700,0.63517346,102350.0,102340.0,0.03875825]
[1738144823202,0.63517346,102350.0,102340.0,0.00014613]
[1738144824001,0.63517346,102350.0,102340.0,0.00214613]
[1738144826296,0.75181725,102350.0,102340.0,0.00214613]
[1738144827193,0.79987671,102350.0,102340.0,0.00214613]
[1738144827395,0.195571,102320.0,102310.0,0.29903911]
[1738144827596,0.195571,102320.0,102310.0,0.3376692]
[1738144827799,0.195571,102320.0,102310.0,0.54561354]
[1738144827995,0.586864,102330.0,102310.0,0.54561354]
[1738144828305,0.586864,102330.0,102310.0,0.5283939]
[1738144828500,0.58701013,102330.0,102320.0,0.04805946]
[1738144828697,0.58701013,102330.0,102320.0,0.08668955]
[1738144829703,0.58801013,102330.0,102320.0,0.09168955]
[1738144830300,0.63606959,102330.0,102320.0,0.09168955]
[1738144831098,0.64595225,102330.0,102320.0,0.09168955]
[1738144831299,0.64595225,102330.0,102320.0,0.05305946]
[1738144831500,0.64595225,102330.0,102320.0,0.007]
[1738144832205,0.64595225,102330.0,102320.0,0.05505946]
[1738144832408,0.59789279,102330.0,102320.0,0.05505946]
[1738144832808,0.68512905,102330.0,102320.0,0.05505946]
[1738144833003,0.73318851,102330.0,102320.0,0.05505946]
[1738144833205,0.68512905,102330.0,102320.0,0.05505946]
[1738144835609,0.73318851,102330.0,102320.0,0.05505946]
[1738144836111,0.64595225,102330.0,102320.0,0.05505946]
[1738144836296,0.59789279,102330.0,102320.0,0.05505946]
[1738144837315,0.64595225,102330.0,102320.0,0.05505946]
[1738144837612,0.64595225,102330.0,102320.0,0.007]
[1738144841614,0.8498323,102330.0,102320.0,0.007]
[1738144847514,2.3498323,102330.0,102320.0,0.007]
[1738144848220,0.8498323,102330.0,102320.0,0.007]
[1738144848410,0.8508323,102330.0,102320.0,0.005]
[1738144848613,0.6542683,102330.0,102310.0,0.00014613]
[1738144848816,0.60443046,102320.0,102310.0,0.00014613]
[1738144849221,0.67013046,102320.0,102310.0,0.00014613]
[1738144849922,0.67013046,102320.0,102310.0,0.00114613]
[1738144851824,0.75736672,102320.0,102310.0,0.00114613]
[1738144853320,0.80542618,102320.0,102310.0,0.00114613]
[1738144854620,0.19559,102310.0,102300.0,0.09885387]
[1738144854820,0.195628,102290.0,102280.0,0.22716423]
[1738144855022,0.96528746,102290.0,102280.0,0.22716423]
[1738144855416,0.96528746,102290.0,102280.0,0.31801916]
[1738144855617,0.3608,102290.0,102280.0,0.31801916]
[1738144855823,0.55656313,102300.0,102280.0,0.67104283]
[1738144856119,0.00014613,102300.0,102290.0,0.27678746]
[1738144856521,0.00014613,102300.0,102290.0,0.37858015]
[1738144857125,0.00014613,102300.0,102290.0,0.41715524]
[1738144857815,0.20402618,102300.0,102290.0,0.41815524]
[1738144858426,0.20402618,102300.0,102290.0,0.42115524]
[1738144859721,0.20402618,102300.0,102290.0,0.38258015]
[1738144860121,0.25208564,102300.0,102290.0,0.38258015]
[1738144860328,0.25208564,102300.0,102290.0,0.33452069]
[1738144860529,0.44769464,102300.0,102290.0,0.33452069]
[1738144860731,0.44769464,102300.0,102290.0,0.38258015]
[1738144861128,0.60461459,102300.0,102290.0,0.33452069]
[1738144862224,0.55655513,102300.0,102290.0,0.38258015]
[1738144862919,0.36094613,102300.0,102290.0,0.38258015]
[1738144863326,0.55655513,102300.0,102290.0,0.38258015]
[1738144863634,0.64379139,102300.0,102290.0,0.38258015]
[1738144864731,0.08738239,102300.0,102290.0,0.74338015]
[1738144864930,0.12618635,102310.0,102290.0,0.83615468]
[1738144865128,0.11664379,102310.0,102300.0,0.71382792]
[1738144865525,0.11664379,102310.0,102300.0,0.82001462]
[1738144865724,0.11664379,102310.0,102300.0,0.77195516]
[1738144865926,0.11664379,102310.0,102300.0,0.82001462]
[1738144867329,0.11664379,102310.0,102300.0,0.85861115]
[1738144867635,0.5964699,102320.0,102310.0,0.19559]
[1738144867837,0.5964699,102320.0,102310.0,0.27574946]
[1738144868236,0.64452936,102320.0,102310.0,0.27574946]
[1738144868726,0.5984699,102320.0,102310.0,0.27574946]
[1738144869135,0.5994699,102320.0,102310.0,0.27574946]
[1738144870436,0.5694699,102320.0,102310.0,0.38032843]
[1738144870832,0.68611369,102320.0,102310.0,0.38032843]
[1738144871544,0.12973969,102320.0,102310.0,0.74112843]
[1738144871840,0.12973969,102320.0,102310.0,0.77974397]
[1738144872633,0.11978992,102320.0,102310.0,0.9255408]
[1738144873536,0.00314613,102320.0,102310.0,0.9255408]
[1738144874737,0.00314613,102320.0,102310.0,0.9402208]
[1738144875743,0.00314613,102320.0,102310.0,0.5794208]
[1738144875943,0.00314613,102320.0,102310.0,0.9402208]
[1738144876243,0.00314613,102320.0,102310.0,0.89216134]
[1738144882254,0.00314613,102320.0,102310.0,0.9402208]
[1738144887843,0.00314613,102320.0,102310.0,0.89216134]
[1738144889859,0.00314613,102320.0,102310.0,0.9402208]
[1738144890054,0.00314613,102320.0,102310.0,0.89216134]
[1738144890558,0.00314613,102320.0,102310.0,0.9402208]
[1738144894461,0.00314613,102320.0,102310.0,0.9255408]
[1738144894859,0.00314613,102320.0,102310.0,0.9402208]
[1738144900068,0.00314613,102320.0,102310.0,0.98060757]
[1738144900259,0.00314613,102320.0,102310.0,0.9402208]
[1738144900461,0.00314613,102320.0,102310.0,0.98060757]
[1738144903674,0.00314613,102320.0,102310.0,0.9402208]
[1738144903877,0.00314613,102320.0,102310.0,0.98060757]
[1738144904376,0.00314613,102320.0,102310.0,1.02866703]
[1738144904577,0.00973418,102330.0,102320.0,0.33974938]
[1738144904578,0.12637797,102330.0,102320.0,0.33974938]
[1738144904780,0.12637797,102330.0,102320.0,0.80995169]
[1738144905075,0.12637797,102330.0,102320.0,0.91699088]
[1738144905277,0.12637797,102330.0,102320.0,1.01472825]
[1738144905472,0.12637797,102330.0,102320.0,0.97434148]
[1738144905678,0.12637797,102330.0,102320.0,0.92628202]
[1738144906679,0.12837797,102330.0,102320.0,0.92628202]
[1738144907080,0.13337797,102330.0,102320.0,0.92728202]
[1738144907674,0.12364379,102330.0,102320.0,0.92728202]
[1738144908377,0.007,102330.0,102320.0,0.92728202]
[1738144911279,0.007,102330.0,102320.0,0.93717135]
[1738144914586,0.007,102330.0,102320.0,0.95185135]
[1738144914886,0.007,102330.0,102320.0,0.99223812]
[1738144920388,0.007,102330.0,102320.0,0.95185135]
[1738144925794,0.007,102330.0,102320.0,0.40496519]
[1738144925981,0.563352,102330.0,102320.0,0.20939419]
[1738144927693,0.61141146,102330.0,102320.0,0.20939419]
[1738144927883,0.61141146,102330.0,102320.0,0.03961554]
[1738144928195,0.61141146,102330.0,102320.0,0.001]
[1738144929485,0.195571,102320.0,102310.0,0.00014613]
[1738144929686,0.74818992,102320.0,102310.0,0.00014613]
[1738144929899,0.70013046,102320.0,102310.0,0.00014613]
[1738144931489,0.70113046,102320.0,102310.0,0.00014613]
[1738144931690,0.70313046,102320.0,102310.0,0.00014613]
[1738144932685,0.75118992,102320.0,102310.0,0.00014613]
[1738144932890,0.70313046,102320.0,102310.0,0.00014613]
[1738144933297,0.71309218,102320.0,102310.0,0.00014613]
[1738144933897,0.97510485,102320.0,102310.0,0.00014613]
[1738144934300,2.47510485,102320.0,102310.0,0.00014613]
[1738144934693,2.52316431,102320.0,102310.0,0.00014613]
[1738144935094,0.97510485,102320.0,102310.0,0.00014613]
[1738144935289,1.02316431,102320.0,102310.0,0.00014613]
[1738144937006,0.87744283,102320.0,102310.0,0.00014613]
[1738144938098,0.195609,102300.0,102290.0,0.25836046]
[1738144938293,0.60446846,102300.0,102290.0,0.25836046]
[1738144938497,0.60446846,102300.0,102290.0,0.36350739]
[1738144939204,0.60446846,102300.0,102290.0,0.36450739]
[1738144939410,0.60446846,102300.0,102290.0,0.36950739]
[1738144939602,0.63526846,102300.0,102290.0,0.32144793]
[1738144940099,0.63526846,102300.0,102290.0,0.36950739]
[1738144940806,0.63526846,102300.0,102290.0,0.30676793]
[1738144941106,0.69946846,102300.0,102290.0,0.006]
[1738144941306,0.69946846,102300.0,102290.0,0.05405946]
[1738144941511,0.69946846,102300.0,102290.0,0.006]
[1738144943700,0.74752792,102300.0,102290.0,0.006]
[1738144944009,0.69946846,102300.0,102290.0,0.006]
[1738144944310,0.70914767,102300.0,102290.0,0.006]
[1738144945709,0.75720713,102300.0,102290.0,0.006]
[1738144946709,0.195628,102290.0,102280.0,0.00026536]
[1738144946913,0.60448746,102290.0,102280.0,0.00026536]
[1738144948007,0.60548746,102290.0,102280.0,0.00726536]
[1738144949607,0.65354692,102290.0,102280.0,0.00726536]
[1738144949807,0.195685,102260.0,102250.0,0.89461746]
[1738144950115,0.556473,102270.0,102260.0,0.195685]
[1738144950327,0.195685,102260.0,102240.0,0.04278833]
[1738144950608,0.195762,102220.0,102210.0,1.12771381]
[1738144950808,0.6047402,102220.0,102210.0,1.16617703]
[1738144951017,0.6047402,102220.0,102210.0,1.27673065]
[1738144951199,0.55668074,102220.0,102210.0,1.23826743]
[1738144951403,0.6047402,102220.0,102210.0,1.22358743]
[1738144951614,0.6047402,102220.0,102210.0,1.11303381]
[1738144951820,0.6057402,102220.0,102210.0,1.11303381]
[1738144952022,0.6057402,102220.0,102210.0,1.11603381]
[1738144952621,0.55768074,102220.0,102210.0,1.11603381]
[1738144953118,0.63123437,102220.0,102210.0,1.31181481]
[1738144953503,0.63123437,102220.0,102210.0,1.30881481]
[1738144953713,0.63123437,102220.0,102210.0,1.31081481]
[1738144954108,0.64102935,102220.0,102210.0,1.31081481]
[1738144954507,0.64102935,102220.0,102210.0,0.002]
[1738144957708,0.64102935,102220.0,102210.0,0.19778]
[1738144962417,0.37171372,102220.0,102210.0,0.27133363]
[1738144962610,0.00111874,102220.0,102210.0,0.75970224]
[1738144962922,0.00111874,102220.0,102210.0,0.39890224]
[1738144963118,0.00111874,102220.0,102210.0,0.75970224]
[1738144963617,0.00111874,102220.0,102210.0,0.86450224]
[1738144964522,0.00111874,102220.0,102210.0,0.93805587]
[1738144965020,0.00111874,102220.0,102210.0,0.97635918]
[1738144965225,0.00014613,102230.0,102220.0,0.195762]
[1738144965424,0.00014613,102230.0,102220.0,0.227162]
[1738144965722,0.00014613,102230.0,102220.0,0.33221804]
[1738144966022,0.36094613,102230.0,102220.0,0.43005103]
[1738144966724,0.36094613,102230.0,102220.0,0.43105103]
[1738144969612,0.36094613,102230.0,102220.0,0.49415103]
[1738144974628,0.36094613,102230.0,102220.0,0.58238466]
[1738144974834,0.00014613,102230.0,102220.0,0.58238466]
[1738144975130,0.00014613,102230.0,102220.0,0.62076837]
[1738144976335,0.48704325,102240.0,102220.0,0.62076837]
[1738144976536,0.14624149,102250.0,102240.0,0.19572]
[1738144976740,0.17435392,102260.0,102240.0,0.54629097]
[1738144977034,0.17435392,102260.0,102250.0,0.69035463]
[1738144977239,0.17435392,102260.0,102250.0,0.72873834]
[1738144977445,0.17435392,102260.0,102250.0,0.83946887]
[1738144977740,0.17435392,102260.0,102250.0,0.93726359]
[1738144978440,0.12552932,102260.0,102250.0,0.93726359]
[1738144979043,0.12652932,102260.0,102250.0,0.93726359]
[1738144979745,0.00014613,102270.0,102260.0,0.195669]
[1738144980039,0.00014613,102270.0,102260.0,0.74195997]
[1738144980239,0.23279268,102280.0,102270.0,0.19565]
[1738144980542,0.45672001,102300.0,102290.0,0.195612]
[1738144980745,0.0625,102300.0,102290.0,0.26916563]
[1738144981045,0.032,102300.0,102290.0,0.73841936]
[1738144981242,0.032,102300.0,102290.0,0.77641703]
[1738144981442,0.21338789,102310.0,102300.0,0.19559]
[1738144981644,0.1955959,102310.0,102300.0,0.26914363]
[1738144982145,0.1955959,102310.0,102300.0,0.75600843]
[1738144982446,0.1955959,102310.0,102300.0,0.89174585]
[1738144982639,0.18604773,102310.0,102300.0,0.89174585]
[1738144982946,0.19104773,102310.0,102300.0,0.89174585]
[1738144983245,0.19104773,102310.0,102300.0,0.96529948]
[1738144983645,0.00514613,102310.0,102300.0,0.96529948]
[1738144984544,0.01414613,102310.0,102300.0,0.96529948]
[1738144984733,0.01414613,102310.0,102300.0,0.92731854]
[1738144985338,0.01414613,102310.0,102300.0,0.85376491]
[1738144988641,0.00146819,102310.0,102300.0,0.85376491]
[1738144990248,1.78296315,102320.0,102300.0,0.85376491]
[1738144990441,1.78296315,102320.0,102310.0,0.07355363]
[1738144990838,1.78296315,102320.0,102310.0,0.11017737]
[1738144992043,1.78396315,102320.0,102310.0,0.11017737]
[1738144992433,1.78396315,102320.0,102310.0,0.11117737]
[1738144992434,2.15176315,102320.0,102310.0,0.11117737]
[1738144992846,0.65276315,102320.0,102310.0,0.11117737]
[1738144994650,0.65276315,102320.0,102310.0,0.12585737]
[1738144994853,0.65276315,102320.0,102310.0,0.32142837]
[1738144996253,0.62347984,102320.0,102310.0,0.32142837]
[1738144998657,0.62347984,102320.0,102310.0,0.001]
[1738144998849,0.42792684,102320.0,102300.0,0.28396376]
[1738144999045,0.556371,102310.0,102300.0,0.28396376]
[1738144999241,0.556371,102310.0,102300.0,0.38725175]
[1738145000044,0.556371,102310.0,102300.0,0.00114613]
[1738145000253,0.195609,102290.0,102280.0,0.226426]
[1738145000550,0.195629,102280.0,102270.0,0.2706591]
[1738145000755,0.195629,102280.0,102270.0,0.2853391]
[1738145000953,0.556429,102280.0,102270.0,0.39819775]
[1738145001854,0.556429,102280.0,102270.0,0.40119775]
[1738145002154,0.556429,102280.0,102270.0,0.32764412]
[1738145003051,0.63098263,102280.0,102270.0,0.011]
[1738145003446,0.587929,102280.0,102270.0,0.011]
[1738145004258,0.59767998,102280.0,102270.0,0.011]
[1738145004449,0.59767998,102280.0,102270.0,0.009]
[1738145005355,0.59767998,102280.0,102260.0,0.25860913]
[1738145005356,0.40205098,102280.0,102260.0,0.25860913]
[1738145005556,0.556448,102270.0,102260.0,0.25860913]
[1738145006346,0.556448,102270.0,102260.0,0.22850913]
[1738145006950,0.556448,102270.0,102260.0,0.22950913]
[1738145007155,0.556448,102270.0,102260.0,0.00114613]
[1738145007656,0.63000163,102270.0,102260.0,0.00114613]
[1738145007859,0.556448,102270.0,102260.0,0.00114613]
[1738145008250,0.556448,102270.0,102260.0,0.19681313]
[1738145009360,0.556448,102270.0,102260.0,0.00114613]
[1738145009560,0.195705,102240.0,102220.0,0.34771291]
[1738145009858,0.917324,102230.0,102220.0,0.34771291]
[1738145010161,2.417324,102230.0,102220.0,0.34771291]
[1738145010657,2.4909971,102230.0,102220.0,0.34771291]
[1738145010957,2.4909971,102230.0,102220.0,0.34971291]
[1738145011349,2.41744347,102230.0,102220.0,0.002]
[1738145011660,2.41744347,102230.0,102220.0,0.007]
[1738145011851,2.42740458,102230.0,102220.0,0.007]
[1738145012252,2.42740458,102230.0,102220.0,0.005]
[1738145012761,2.45940458,102230.0,102220.0,0.005]
[1738145013262,2.53295821,102230.0,102220.0,0.005]
[1738145020471,0.195781,102200.0,102190.0,0.0633]
[1738145020660,0.99093463,102200.0,102190.0,0.0633]
[1738145020857,0.72169719,102200.0,102190.0,0.0633]
[1738145021069,0.36089719,102200.0,102190.0,0.36966196]
[1738145021367,0.36089719,102200.0,102190.0,0.17386196]
[1738145021571,0.36089719,102200.0,102190.0,0.44321559]
[1738145021572,9.719e-05,102200.0,102190.0,0.44321559]
[1738145022068,9.719e-05,102200.0,102190.0,0.54506773]
[1738145022376,0.00014613,102210.0,102200.0,0.195781]
[1738145022670,0.00014613,102210.0,102200.0,0.26933463]
[1738145022971,0.00014613,102210.0,102200.0,0.37715676]
[1738145023165,0.00014613,102210.0,102200.0,0.4750089]
[1738145025975,0.00014613,102210.0,102200.0,0.9564489]
[1738145026273,0.3608,102230.0,102220.0,0.195743]
[1738145026472,0.3608,102230.0,102220.0,0.26929663]
[1738145026674,0.3608,102230.0,102220.0,0.38141997]
[1738145026874,0.3608,102230.0,102220.0,0.41361997]
[1738145027574,0.3628,102230.0,102220.0,0.41361997]
[1738145027970,0.3688,102230.0,102220.0,0.41361997]
[1738145028474,0.008,102230.0,102220.0,0.41361997]
[1738145028669,0.005,102230.0,102220.0,0.41361997]
[1738145029272,0.3628,102230.0,102220.0,0.34006634]
[1738145029467,0.43635363,102230.0,102220.0,0.14732334]
[1738145029669,0.63107663,102230.0,102220.0,0.0352]
[1738145029878,0.66277663,102230.0,102220.0,0.0352]
[1738145030472,0.66177663,102230.0,102220.0,0.0352]
[1738145030673,0.66177663,102230.0,102220.0,0.004]
[1738145031273,0.588223,102230.0,102220.0,0.003]
[1738145031463,0.53939794,102230.0,102210.0,0.26945776]
[1738145031780,0.3608,102220.0,102210.0,0.3027783]
[1738145032773,2.00825795,102230.0,102210.0,0.1070203]
[1738145033073,2.00869794,102230.0,102220.0,0.195743]
[1738145033781,0.50869794,102230.0,102220.0,0.195743]
[1738145033971,0.50769794,102230.0,102220.0,0.195743]
[1738145034778,0.50769794,102230.0,102220.0,0.210423]
[1738145035280,0.59734155,102230.0,102220.0,0.35020934]
[1738145035873,0.59834155,102230.0,102220.0,0.35020934]
[1738145036484,0.40261855,102230.0,102220.0,0.35020934]
[1738145036780,0.09064361,102230.0,102220.0,0.95200118]
[1738145038770,0.004,102230.0,102220.0,0.95200118]
[1738145045678,0.08678974,102240.0,102230.0,0.195723]
[1738145045880,0.11619805,102250.0,102240.0,0.195704]
[1738145046187,0.318616,102260.0,102250.0,0.195685]
[1738145046483,0.318616,102260.0,102250.0,0.81067321]
[1738145046786,0.318616,102260.0,102250.0,0.90846793]
[1738145047286,0.318616,102260.0,102250.0,0.94076793]
[1738145047287,0.26145261,102260.0,102250.0,0.94076793]
[1738145047787,0.26945261,102260.0,102250.0,0.94176793]
[1738145050184,0.008,102260.0,102250.0,0.94176793]
[1738145052488,0.008,102260.0,102250.0,0.66602793]
[1738145052694,0.008,102260.0,102250.0,0.66594793]
[1738145054390,0.008,102260.0,102250.0,0.54866793]
[1738145054694,0.008,102260.0,102250.0,1.02638793]
[1738145054994,0.008,102260.0,102250.0,1.04090793]
[1738145057497,0.7109905,102280.0,102260.0,0.195663]
[1738145057689,0.195647,102270.0,102260.0,0.195663]
[1738145057891,0.556447,102270.0,102260.0,0.30644611]
[1738145060399,0.567447,102270.0,102260.0,0.30744611]
[1738145062188,0.64100063,102270.0,102260.0,0.001]
[1738145062687,0.567447,102270.0,102260.0,0.001]
[1738145063386,0.567447,102270.0,102260.0,0.196666]
[1738145064786,0.567447,102270.0,102260.0,0.37816349]
[1738145065600,0.3718,102270.0,102260.0,0.37816349]
[1738145065893,0.3718,102270.0,102260.0,0.41146349]
[1738145066290,0.011,102270.0,102260.0,0.41146349]
[1738145068589,0.011,102270.0,102260.0,0.77226349]
[1738145068790,0.011,102270.0,102260.0,0.41146349]
[1738145068986,0.011,102270.0,102260.0,0.50924865]
[1738145069599,0.011,102270.0,102260.0,0.54687847]
[1738145074599,0.011,102270.0,102260.0,0.90767847]
[1738145074799,0.011,102270.0,102260.0,0.92235847]
[1738145082306,0.011,102270.0,102260.0,1.27411975]
[1738145087709,0.011,102270.0,102260.0,1.20056612]
[1738145089208,0.011,102270.0,102260.0,1.27411975]
[1738145089513,0.011,102270.0,102260.0,0.91331975]
[1738145094614,0.011,102270.0,102260.0,0.89863975]
[1738145094817,0.011,102270.0,102260.0,1.27411975]
[1738145096815,0.36203043,102280.0,102270.0,0.195647]
[1738145097017,0.36203043,102280.0,102270.0,0.33883045]
[1738145097217,0.36203043,102280.0,102270.0,0.44407035]
[1738145097419,0.36203043,102280.0,102270.0,0.54185551]
[1738145098003,0.36203043,102280.0,102270.0,0.54285551]
[1738145098218,0.37103043,102280.0,102270.0,0.54285551]
[1738145098713,0.01023043,102280.0,102270.0,0.97720914]
[1738145098920,0.01023043,102280.0,102270.0,1.00880914]
[1738145099115,0.00914613,102280.0,102270.0,1.00880914]
[1738145099418,0.00914613,102280.0,102270.0,0.93525551]
[1738145099715,0.00414613,102280.0,102270.0,0.93425551]
[1738145100112,0.00814613,102280.0,102270.0,0.93425551]
[1738145100818,0.00814613,102280.0,102270.0,0.57345551]
[1738145101004,0.00514613,102280.0,102270.0,0.93425551]
[1738145101210,0.56157413,102280.0,102270.0,0.46830188]
[1738145101405,0.59307413,102280.0,102270.0,0.17486972]
[1738145101609,0.23227413,102280.0,102270.0,0.37051672]
[1738145102521,0.59307413,102280.0,102270.0,0.37051672]
[1738145103121,0.56379537,102280.0,102270.0,0.37051672]
[1738145103321,0.3923,102280.0,102270.0,0.37051672]
[1738145103508,0.3923,102280.0,102270.0,0.44407035]
[1738145103912,0.3608,102280.0,102270.0,0.54184595]
[1738145104128,0.00998451,102290.0,102280.0,0.195628]
[1738145104415,0.00998451,102290.0,102280.0,0.33801145]
[1738145104615,0.00998451,102290.0,102280.0,0.81093136]
[1738145104810,0.00998451,102290.0,102280.0,0.54790696]
[1738145105017,0.00998451,102290.0,102280.0,0.90870696]
[1738145105224,0.00998451,102290.0,102280.0,0.54790696]
[1738145105422,0.01298451,102290.0,102280.0,0.90870696]
[1738145105627,0.00314613,102290.0,102280.0,0.90870696]
[1738145106625,0.00414613,102290.0,102280.0,0.90870696]
[1738145107127,0.00414613,102290.0,102280.0,0.54790696]
[1738145110936,0.00414613,102290.0,102280.0,0.90870696]
[1738145112627,0.00714613,102290.0,102280.0,0.90870696]
[1738145113228,0.05632153,102300.0,102280.0,0.71307896]
[1738145113431,0.05632153,102300.0,102290.0,0.26916263]
[1738145113638,0.05632153,102300.0,102290.0,0.69939245]
[1738145113936,0.05632153,102300.0,102290.0,0.83605563]
[1738145114140,0.05632153,102300.0,102290.0,0.93381211]
[1738145114527,0.05732153,102300.0,102290.0,0.94849211]
[1738145115837,0.05832153,102300.0,102290.0,0.94849211]
[1738145116744,0.05932153,102300.0,102290.0,0.94849211]
[1738145121044,0.05932153,102300.0,102290.0,0.95842801]
[1738145121647,0.03978494,102300.0,102290.0,0.95842801]
[1738145122444,0.00014613,102310.0,102290.0,0.83637264]
[1738145122751,0.0307,102330.0,102300.0,0.69708326]
[1738145122943,0.0307,102330.0,102320.0,0.26910563]
[1738145123448,0.0307,102330.0,102320.0,0.87290482]
[1738145124239,0.0317,102330.0,102320.0,0.87290482]
[1738145126251,0.0327,102330.0,102320.0,0.87290482]
[1738145127046,0.01315916,102330.0,102320.0,0.87290482]
[1738145127746,0.01315916,102330.0,102320.0,0.51210482]
[1738145130758,0.01315916,102330.0,102320.0,0.87290482]
[1738145131442,0.01315916,102330.0,102320.0,0.51210482]
[1738145131644,0.002,102330.0,102320.0,0.87290482]
[1738145132155,0.00110646,102340.0,102330.0,0.195533]
[1738145132342,0.587297,102350.0,102330.0,0.30108663]
[1738145132538,0.587297,102350.0,102330.0,0.41238592]
[1738145132738,0.587297,102350.0,102330.0,0.51011374]
[1738145133450,0.3608,102350.0,102340.0,0.26906663]
[1738145133753,0.3608,102350.0,102340.0,0.30026663]
[1738145133955,0.3608,102350.0,102340.0,0.4072823]
[1738145134150,0.3608,102350.0,102340.0,0.50499103]
[1738145134748,0.59687845,102360.0,102340.0,0.51967103]
[1738145135653,0.59687845,102360.0,102340.0,0.52067103]
[1738145135856,0.54804903,102360.0,102340.0,0.52067103]
[1738145136042,0.003,102350.0,102340.0,0.51967103]
[1738145136856,0.59787845,102360.0,102340.0,0.51967103]
[1738145137457,0.3608,102350.0,102340.0,0.51967103]
[1738145137756,0.001,102350.0,102340.0,0.51967103]
[1738145138057,0.001,102350.0,102340.0,0.88047103]
[1738145138848,0.001,102350.0,102340.0,0.9190389]
[1738145139049,0.37079945,102360.0,102340.0,0.9190389]
[1738145139249,0.37179945,102360.0,102350.0,0.07355363]
[1738145139444,0.56727445,102360.0,102350.0,0.07355363]
[1738145139649,0.56727445,102360.0,102350.0,0.17789984]
[1738145139849,0.56727445,102360.0,102350.0,0.47110257]
[1738145140661,0.56627445,102360.0,102350.0,0.47110257]
[1738145141458,0.56627445,102360.0,102350.0,0.39754894]
[1738145142258,0.56827445,102360.0,102350.0,0.39754894]
[1738145146666,0.56827445,102360.0,102350.0,0.44567621]
[1738145148262,0.56827445,102360.0,102350.0,0.48430439]
[1738145151069,0.20747445,102360.0,102350.0,0.51640439]
[1738145154071,0.56827445,102360.0,102350.0,0.51640439]
[1738145154267,0.20747445,102360.0,102350.0,0.51640439]
[1738145154576,0.20747445,102360.0,102350.0,0.53108439]
[1738145158170,0.20747445,102360.0,102350.0,0.56288439]
[1738145158674,0.56827445,102360.0,102350.0,0.56288439]
[1738145158974,0.20747445,102360.0,102350.0,0.56288439]
[1738145160074,0.56827445,102360.0,102350.0,0.56288439]
[1738145160273,0.66452899,102360.0,102350.0,0.14297439]
[1738145160467,0.69622899,102360.0,102350.0,0.03862818]
[1738145160676,0.67950172,102360.0,102350.0,0.03862818]
[1738145160873,0.67950172,102360.0,102350.0,0.15077775]
[1738145161280,0.67950172,102360.0,102350.0,0.11214957]
[1738145162190,0.67950172,102360.0,102350.0,0.30764357]
[1738145162690,0.89294128,102360.0,102350.0,0.35577084]
[1738145163276,0.94106855,102360.0,102350.0,0.30764357]
[1738145165995,0.79591174,102360.0,102350.0,0.30764357]
[1738145167187,0.79591174,102360.0,102350.0,0.11214957]
[1738145168290,0.79591174,102360.0,102350.0,0.15091724]
[1738145173204,0.79591174,102360.0,102350.0,0.11214957]
[1738145174699,0.79591174,102360.0,102350.0,0.12682957]
[1738145175091,2.26451174,102360.0,102350.0,0.12682957]
[1738145175289,0.68468447,102360.0,102350.0,0.37045084]
[1738145175601,0.12840947,102360.0,102350.0,0.5373124]
[1738145176803,0.27356628,102360.0,102350.0,0.5373124]
[1738145179904,0.01199945,102360.0,102350.0,0.5373124]
[1738145180100,0.01199945,102360.0,102350.0,0.5409124]
[1738145180994,0.01199945,102360.0,102350.0,0.58117647]
[1738145181195,0.002,102360.0,102350.0,0.58117647]
[1738145181797,0.002,102360.0,102350.0,0.5409124]
[1738145181998,0.002,102360.0,102350.0,0.58903967]
[1738145182199,0.002,102360.0,102350.0,0.58117647]